lending/lending_fUSD_20250121
["ID","MTS","AMOUNT","RATE_DAILY","PERIOD"]
[349768127,1737418241486,-1188.94,0.00019797,2]
[349768129,1737418241498,-500.0,0.00019797,2]
[349768131,1737418241509,-500.0,0.00019797,2]
[349768133,1737418241521,-699.34,0.00019797,2]
[349768136,1737418241532,-500.0,0.00019797,2]
[349768138,1737418241543,-1425.53,0.00019797,2]
[349768140,1737418241556,-500.0,0.00019797,2]
[349768142,1737418241567,-642.61,0.00019797,2]
[349768144,1737418241580,-802.3,0.00019797,2]
[349768147,1737418241592,-500.0,0.00019797,2]
[349768149,1737418241605,-605.56,0.00019797,2]
[349768151,1737418241615,-500.0,0.00019797,2]
[349768153,1737418241626,-500.0,0.00019797,2]
[349768155,1737418241637,-664.27,0.00019797,2]
[349768157,1737418241648,-500.0,0.00019797,2]
[349768159,1737418241659,-500.0,0.00019797,2]
[349768161,1737418241669,-500.0,0.00019797,2]
[349768163,1737418241681,-730.71,0.00019797,2]
[349768166,1737418241693,-500.0,0.00019797,2]
[349768168,1737418241705,-500.0,0.00019797,2]
[349768170,1737418241716,-279.39886518,0.00019797,2]
[349768172,1737418241727,-500.0,0.00019797,2]
[349768174,1737418241738,-500.0,0.00019797,2]
[349768176,1737418241750,-486.6149173,0.00019797,2]
[349768178,1737418241761,-500.0,0.00019797,2]
[349768181,1737418241773,-500.0,0.00019797,2]
[349768183,1737418241784,-500.0,0.00019797,2]
[349768185,1737418241794,-620.92,0.00019797,2]
[349768187,1737418241806,-500.0,0.00019797,2]
[349768189,1737418241817,-500.0,0.00019797,2]
[349768191,1737418241830,-500.0,0.00019797,2]
[349768194,1737418241842,-500.0,0.00019798,2]
[349768196,1737418241853,-500.0,0.00019798,2]
[349768198,1737418241864,-500.0,0.00019798,2]
[349768200,1737418241875,-500.0,0.00019798,2]
[349768203,1737418241886,-500.0,0.00019798,2]
[349768205,1737418241899,-500.0,0.00019798,2]
[349768207,1737418241910,-500.0,0.00019798,2]
[349768209,1737418241920,-500.0,0.00019798,2]
[349768211,1737418241929,-500.0,0.00019798,2]
[349768213,1737418241938,-500.0,0.00019798,2]
[349768215,1737418241948,-500.0,0.00019798,2]
[349768217,1737418241957,-500.0,0.00019798,2]
[349768219,1737418241966,-500.0,0.00019798,2]
[349768221,1737418241975,-500.0,0.00019798,2]
[349768223,1737418241985,-500.0,0.00019798,2]
[349768225,1737418241994,-500.0,0.00019798,2]
[349768227,1737418242003,-500.0,0.00019798,2]
[349768243,1737418242242,-500.0,0.00019798,2]
[349768244,1737418242260,-500.0,0.00019798,2]
[349768245,1737418242270,-500.0,0.00019798,2]
[349768246,1737418242279,-500.0,0.00019798,2]
[349768247,1737418242289,-301.96,0.00019798,2]
[349768248,1737418242298,-500.0,0.00019798,2]
[349768249,1737418242307,-500.0,0.00019798,2]
[349768250,1737418242317,-500.0,0.00019798,2]
[349768251,1737418242330,-500.0,0.00019798,2]
[349768252,1737418242340,-500.0,0.00019798,2]
[349768253,1737418242349,-500.0,0.00019798,2]
[349768254,1737418242359,-500.0,0.00019798,2]
[349768255,1737418242368,-703.05,0.00019798,2]
[349768256,1737418242378,-500.0,0.00019798,2]
[349768257,1737418242387,-500.0,0.00019798,2]
[349768258,1737418242396,-621.07,0.00019798,2]
[349768259,1737418242406,-1146.45,0.00019798,2]
[349768260,1737418242417,-500.0,0.00019798,2]
[349768261,1737418242427,-251.293089,0.00019798,2]
[349768262,1737418242436,-500.0,0.00019798,2]
[349768263,1737418242446,-500.0,0.00019798,2]
[349768264,1737418242456,-171.68853169,0.00019798,2]
[349768265,1737418242467,-500.0,0.00019798,2]
[349768266,1737418242476,-817.86,0.00019798,2]
[349768267,1737418242486,-500.0,0.00019798,2]
[349768268,1737418242495,-500.0,0.00019798,2]
[349768269,1737418242504,-1131.27,0.00019798,2]
[349768270,1737418242515,-156.45728,0.00019798,2]
[349768271,1737418242527,-500.0,0.00019798,2]
[349768272,1737418242536,-500.0,0.00019798,2]
[349768273,1737418242546,-801.7,0.00019798,2]
[349768274,1737418242555,-500.0,0.00019798,2]
[349768275,1737418242567,-500.0,0.00019798,2]
[349768276,1737418242579,-1535.42,0.00019798,2]
[349768277,1737418242589,-830.37,0.00019798,2]
[349768278,1737418242599,-829.35,0.00019798,2]
[349768279,1737418242610,-514.18,0.00019798,2]
[349768280,1737418242619,-1187.21,0.00019798,2]
[349768281,1737418242628,-500.0,0.00019798,2]
[349768282,1737418242638,-570.16,0.00019798,2]
[349768283,1737418242647,-703.91,0.00019798,2]
[349768284,1737418242656,-1413.53,0.00019798,2]
[349768285,1737418242666,-550.62,0.00019798,2]
[349768286,1737418242675,-894.6,0.00019798,2]
[349768287,1737418242684,-500.0,0.00019799,2]
[349768288,1737418242694,-500.0,0.00019799,2]
[349768289,1737418242704,-500.0,0.00019799,2]
[349768290,1737418242715,-534.25096694,0.00019799,2]
[349768291,1737418242725,-500.0,0.00019871,2]
[349768292,1737418242735,-258.06980835,0.00019878,2]
[349768294,1737418242745,-420.0,0.00019881,2]
[349768295,1737418242755,-53579.83411439,0.00019896,2]
[349768296,1737418242765,-530.13,0.00019972,2]
[349768297,1737418242774,-517.52,0.00019972,2]
[349768298,1737418242783,-500.0,0.00019972,2]
[349768299,1737418242793,-657.88,0.00019972,2]
[349768300,1737418242802,-1011.35,0.00019972,2]
[349768301,1737418242812,-726.57,0.00019972,2]
[349768302,1737418242823,-1153.79,0.00019972,2]
[349768303,1737418242833,-573.65,0.00019972,2]
[349768304,1737418242842,-910.43,0.00019972,2]
[349768305,1737418242852,-794.24,0.00019972,2]
[349768306,1737418242861,-500.0,0.00019972,2]
[349768307,1737418242870,-500.0,0.00019972,2]
[349768308,1737418242880,-1131.13,0.00019972,2]
[349768309,1737418242889,-500.0,0.00019972,2]
[349768310,1737418242899,-1391.68,0.00019972,2]
[349768311,1737418242908,-500.0,0.00019972,2]
[349768312,1737418242917,-500.0,0.00019972,2]
[349768313,1737418242927,-500.0,0.00019972,2]
[349768314,1737418242936,-1472.73,0.00019972,2]
[349768316,1737418242947,-583.24,0.00019972,2]
[349768319,1737418242958,-500.0,0.00019972,2]
[349768321,1737418242967,-500.0,0.00019972,2]
[349768324,1737418242976,-1093.55,0.00019972,2]
[349768326,1737418242986,-500.0,0.00019998,2]
[349768328,1737418242996,-500.0,0.00019998,2]
[349768330,1737418243007,-500.0,0.00019998,2]
[349768332,1737418243016,-500.0,0.00019998,2]
[349768334,1737418243026,-500.0,0.00019998,2]
[349768336,1737418243037,-500.0,0.00019998,2]
[349768338,1737418243047,-696.22,0.00019998,2]
[349768340,1737418243056,-583.13,0.00019998,2]
[349768341,1737418243067,-500.0,0.00019998,2]
[349768342,1737418243079,-500.0,0.00019998,2]
[349768343,1737418243090,-1186.32,0.00019998,2]
[349768344,1737418243100,-2319.64,0.00019998,2]
[349768345,1737418243109,-500.0,0.00019998,2]
[349768346,1737418243119,-500.0,0.00019998,2]
[349768347,1737418243129,-500.0,0.00019998,2]
[349768348,1737418243139,-500.0,0.00019998,2]
[349768349,1737418243150,-500.0,0.00019998,2]
[349768350,1737418243160,-1126.99,0.00019998,2]
[349768351,1737418243170,-1444.67,0.00019998,2]
[349768352,1737418243180,-500.0,0.00019998,2]
[349768353,1737418243190,-500.0,0.00019998,2]
[349768354,1737418243200,-531.88,0.00019998,2]
[349768355,1737418243215,-617.28,0.00019998,2]
[349768356,1737418243224,-500.0,0.00019998,2]
[349768357,1737418243234,-600.33,0.00019998,2]
[349768358,1737418243244,-1768.27,0.00019998,2]
[349768359,1737418243253,-500.0,0.00019998,2]
[349768360,1737418243263,-883.44,0.00019998,2]
[349768361,1737418243272,-764.18,0.00019998,2]
[349768362,1737418243282,-914.35,0.00019998,2]
[349768363,1737418243291,-1000.0,0.0002,14]
[349768364,1737418243300,-500.0,0.00020044,2]
[349768365,1737418243309,-150.95800678,0.00020044,2]
[349768366,1737418243319,-500.21107376,0.00020044,2]
[349768367,1737418243330,-204.56880951,0.00020044,2]
[349768368,1737418243340,-500.0,0.00020071,2]
[349768369,1737418243350,-500.0,0.00020071,2]
[349768370,1737418243360,-695.21,0.00020071,2]
[349768371,1737418243369,-500.0,0.00020071,2]
[349768372,1737418243378,-500.0,0.00020071,2]
[349768373,1737418243388,-500.0,0.00020071,2]
[349768374,1737418243397,-500.0,0.00020071,2]
[349768375,1737418243407,-500.0,0.00020071,2]
[349768376,1737418243416,-500.0,0.00020071,2]
[349768377,1737418243426,-500.0,0.00020071,2]
[349768378,1737418243435,-500.0,0.00020071,2]
[349768379,1737418243444,-500.0,0.00020071,2]
[349768380,1737418243453,-500.0,0.00020071,2]
[349768381,1737418243463,-500.0,0.00020071,2]
[349768382,1737418243472,-500.0,0.00020071,2]
[349768383,1737418243482,-500.0,0.00020071,2]
[349768384,1737418243491,-500.0,0.00020071,2]
[349768385,1737418243501,-500.0,0.00020071,2]
[349768386,1737418243510,-500.0,0.00020071,2]
[349768387,1737418243519,-500.0,0.00020071,2]
[349768388,1737418243532,-500.0,0.00020071,2]
[349768389,1737418243541,-500.0,0.00020071,2]
[349768390,1737418243551,-500.0,0.00020071,2]
[349768391,1737418243560,-500.0,0.00020071,2]
[349768392,1737418243571,-500.0,0.00020071,2]
[349768393,1737418243580,-500.0,0.00020071,2]
[349768394,1737418243590,-500.0,0.00020071,2]
[349768395,1737418243602,-500.0,0.00020071,2]
[349768396,1737418243611,-591.26,0.00020071,2]
[349768397,1737418243620,-500.0,0.00020071,2]
[349768398,1737418243630,-506.62,0.00020071,2]
[349768399,1737418243639,-538.4,0.00020071,2]
[349768400,1737418243649,-637.21,0.00020071,2]
[349768401,1737418243659,-504.65,0.00020071,2]
[349768402,1737418243668,-500.0,0.00020071,2]
[349768403,1737418243677,-1861.44,0.00020071,2]
[349768404,1737418243687,-703.6,0.00020071,2]
[349768405,1737418243696,-1188.94,0.00020071,2]
[349768406,1737418243706,-500.0,0.00020071,2]
[349768407,1737418243715,-500.0,0.00020071,2]
[349768408,1737418243725,-699.34,0.00020071,2]
[349768409,1737418243735,-500.0,0.00020071,2]
[349768410,1737418243743,-1425.53,0.00020071,2]
[349768411,1737418243753,-500.0,0.00020071,2]
[349768412,1737418243762,-642.61,0.00020071,2]
[349768413,1737418243772,-802.3,0.00020071,2]
[349768414,1737418243781,-500.0,0.00020071,2]
[349768415,1737418243790,-605.56,0.00020071,2]
[349768416,1737418243800,-210.51419676,0.00020071,2]
[349768417,1737418243810,-500.0,0.00020071,2]
[349768418,1737418243819,-664.27,0.00020071,2]
[349768419,1737418243831,-500.0,0.00020071,2]
[349768420,1737418243839,-500.0,0.00020071,2]
[349768421,1737418243849,-500.0,0.00020071,2]
[349768422,1737418243858,-730.71,0.00020071,2]
[349768423,1737418243867,-500.0,0.00020071,2]
[349768424,1737418243876,-500.0,0.00020071,2]
[349768425,1737418243885,-500.0,0.00020071,2]
[349768426,1737418243894,-500.0,0.00020071,2]
[349768427,1737418243903,-500.0,0.00020071,2]
[349768428,1737418243913,-500.0,0.00020071,2]
[349768429,1737418243922,-500.0,0.00020071,2]
[349768430,1737418243931,-251.62710367,0.00020071,2]
[349768431,1737418243940,-500.0,0.00020071,2]
[349768432,1737418243949,-500.0,0.00020072,2]
[349768433,1737418243958,-500.0,0.00020072,2]
[349768434,1737418243967,-500.0,0.00020072,2]
[349768435,1737418243976,-500.0,0.00020072,2]
[349768436,1737418243985,-500.0,0.00020072,2]
[349768437,1737418243995,-424.84,0.00020072,2]
[349768438,1737418244004,-384.99,0.00020072,2]
[349768439,1737418244013,-179.85,0.00020072,2]
[349768440,1737418244022,-500.0,0.00020072,2]
[349768441,1737418244031,-500.0,0.00020072,2]
[349768442,1737418244040,-500.0,0.00020072,2]
[349768443,1737418244049,-500.0,0.00020072,2]
[349768444,1737418244058,-500.0,0.00020072,2]
[349768445,1737418244067,-500.0,0.00020072,2]
[349768446,1737418244078,-500.0,0.00020072,2]
[349768447,1737418244087,-500.0,0.00020072,2]
[349768448,1737418244097,-500.0,0.00020072,2]
[349768449,1737418244106,-249.53568461,0.00020072,2]
[349768450,1737418244116,-500.0,0.00020072,2]
[349768451,1737418244125,-500.0,0.00020072,2]
[349768452,1737418244134,-390.21,0.00020072,2]
[349768453,1737418244143,-500.0,0.00020072,2]
[349768454,1737418244154,-500.0,0.00020072,2]
[349768455,1737418244163,-500.0,0.00020072,2]
[349768456,1737418244172,-703.05,0.00020072,2]
[349768457,1737418244182,-500.0,0.00020072,2]
[349768458,1737418244191,-500.0,0.00020072,2]
[349768459,1737418244200,-621.07,0.00020072,2]
[349768460,1737418244210,-1146.45,0.00020072,2]
[349768461,1737418244219,-500.0,0.00020072,2]
[349768462,1737418244228,-251.293089,0.00020072,2]
[349768463,1737418244238,-500.0,0.00020072,2]
[349768464,1737418244247,-500.0,0.00020072,2]
[349768465,1737418244256,-817.86,0.00020072,2]
[349768466,1737418244266,-500.0,0.00020072,2]
[349768467,1737418244275,-500.0,0.00020072,2]
[349768468,1737418244284,-156.45728,0.00020072,2]
[349768469,1737418244293,-1131.27,0.00020072,2]
[349768470,1737418244303,-500.0,0.00020072,2]
[349768471,1737418244312,-500.0,0.00020072,2]
[349768473,1737418244322,-801.7,0.00020072,2]
[349768475,1737418244332,-500.0,0.00020072,2]
[349768477,1737418244341,-500.0,0.00020072,2]
[349768479,1737418244350,-1535.42,0.00020072,2]
[349768481,1737418244360,-830.37,0.00020072,2]
[349768482,1737418244369,-829.35,0.00020072,2]
[349768484,1737418244379,-514.18,0.00020072,2]
[349768486,1737418244389,-1187.21,0.00020072,2]
[349768488,1737418244398,-500.0,0.00020072,2]
[349768490,1737418244408,-570.16,0.00020072,2]
[349768492,1737418244418,-703.91,0.00020072,2]
[349768493,1737418244427,-1413.53,0.00020072,2]
[349768494,1737418244437,-550.62,0.00020072,2]
[349768495,1737418244446,-894.6,0.00020072,2]
[349768496,1737418244455,-500.0,0.00020073,2]
[349768497,1737418244465,-537.88470966,0.00020073,2]
[349768498,1737418244474,-500.0,0.00020073,2]
[349768499,1737418244484,-150.96267455,0.00020081,2]
[349768500,1737418244493,-652.58,0.00020128,2]
[349768501,1737418244503,-258.06980835,0.00020131,2]
[349768502,1737418244512,-500.0,0.00020145,2]
[349768503,1737418244526,-53579.83411439,0.00020183,2]
[349768504,1737418244535,-530.13,0.00020246,2]
[349768505,1737418244544,-517.52,0.00020246,2]
[349768506,1737418244555,-500.0,0.00020246,2]
[349768507,1737418244565,-657.88,0.00020246,2]
[349768508,1737418244576,-1011.35,0.00020246,2]
[349768509,1737418244586,-726.57,0.00020246,2]
[349768510,1737418244597,-1153.79,0.00020246,2]
[349768511,1737418244607,-573.65,0.00020246,2]
[349768512,1737418244616,-910.43,0.00020246,2]
[349768513,1737418244625,-794.24,0.00020246,2]
[349768514,1737418244634,-500.0,0.00020246,2]
[349768515,1737418244643,-500.0,0.00020246,2]
[349768516,1737418244652,-1131.13,0.00020246,2]
[349768517,1737418244661,-500.0,0.00020246,2]
[349768518,1737418244671,-1391.68,0.00020246,2]
[349768519,1737418244680,-500.0,0.00020246,2]
[349768520,1737418244689,-473.11959908,0.00020246,2]
[349768521,1737418244699,-500.0,0.00020246,2]
[349768522,1737418244708,-1472.73,0.00020246,2]
[349768523,1737418244717,-583.24,0.00020246,2]
[349768524,1737418244727,-500.0,0.00020246,2]
[349768525,1737418244736,-500.0,0.00020246,2]
[349768526,1737418244746,-1093.55,0.00020246,2]
[349768527,1737418244755,-500.0,0.00020272,2]
[349768528,1737418244765,-500.0,0.00020272,2]
[349768529,1737418244774,-500.0,0.00020272,2]
[349768530,1737418244784,-500.0,0.00020272,2]
[349768531,1737418244793,-500.0,0.00020272,2]
[349768532,1737418244802,-500.0,0.00020272,2]
[349768533,1737418244811,-696.22,0.00020272,2]
[349768534,1737418244822,-583.13,0.00020272,2]
[349768535,1737418244831,-500.0,0.00020272,2]
[349768536,1737418244840,-500.0,0.00020272,2]
[349768537,1737418244849,-1186.32,0.00020272,2]
[349768538,1737418244858,-2319.64,0.00020272,2]
[349768539,1737418244867,-500.0,0.00020272,2]
[349768540,1737418244876,-500.0,0.00020272,2]
[349768541,1737418244885,-500.0,0.00020272,2]
[349768542,1737418244894,-500.0,0.00020272,2]
[349768543,1737418244903,-500.0,0.00020272,2]
[349768544,1737418244912,-1126.99,0.00020272,2]
[349768545,1737418244922,-1444.67,0.00020272,2]
[349768546,1737418244933,-500.0,0.00020272,2]
[349768547,1737418244942,-531.88,0.00020272,2]
[349768548,1737418244952,-617.28,0.00020272,2]
[349768549,1737418244962,-475.15853425,0.00020272,2]
[349768550,1737418244972,-600.33,0.00020272,2]
[349768551,1737418244982,-1768.27,0.00020272,2]
[349768552,1737418244993,-500.0,0.00020272,2]
[349768553,1737418245003,-883.44,0.00020272,2]
[349768554,1737418245012,-764.18,0.00020272,2]
[349768555,1737418245022,-914.35,0.00020272,2]
[349768556,1737418245032,-500.0,0.00020345,2]
[349768557,1737418245042,-500.0,0.00020345,2]
[349768558,1737418245052,-695.21,0.00020345,2]
[349768559,1737418245062,-500.0,0.00020345,2]
[349768560,1737418245073,-500.0,0.00020345,2]
[349768561,1737418245083,-500.0,0.00020345,2]
[349768562,1737418245093,-500.0,0.00020345,2]
[349768563,1737418245103,-500.0,0.00020345,2]
[349768564,1737418245112,-500.0,0.00020345,2]
[349768565,1737418245121,-500.0,0.00020345,2]
[349768566,1737418245131,-500.0,0.00020345,2]
[349768567,1737418245141,-500.0,0.00020345,2]
[349768568,1737418245151,-500.0,0.00020345,2]
[349768569,1737418245161,-500.0,0.00020345,2]
[349768570,1737418245171,-500.0,0.00020345,2]
[349768571,1737418245181,-500.0,0.00020345,2]
[349768572,1737418245190,-500.0,0.00020345,2]
[349768573,1737418245200,-500.0,0.00020345,2]
[349768574,1737418245210,-500.0,0.00020345,2]
[349768575,1737418245220,-500.0,0.00020345,2]
[349768576,1737418245230,-500.0,0.00020345,2]
[349768577,1737418245239,-500.0,0.00020345,2]
[349768578,1737418245249,-500.0,0.00020345,2]
[349768579,1737418245258,-591.26,0.00020345,2]
[349768580,1737418245268,-500.0,0.00020345,2]
[349768581,1737418245278,-506.62,0.00020345,2]
[349768582,1737418245288,-538.4,0.00020345,2]
[349768583,1737418245298,-637.21,0.00020345,2]
[349768584,1737418245308,-504.65,0.00020345,2]
[349768585,1737418245318,-500.0,0.00020345,2]
[349768586,1737418245330,-1861.44,0.00020345,2]
[349768587,1737418245340,-703.6,0.00020345,2]
[349768588,1737418245349,-1188.94,0.00020345,2]
[349768589,1737418245360,-500.0,0.00020345,2]
[349768590,1737418245369,-500.0,0.00020345,2]
[349768591,1737418245500,-699.34,0.00020345,2]
[349768592,1737418245533,-500.0,0.00020345,2]
[349768593,1737418245542,-1425.53,0.00020345,2]
[349768594,1737418245552,-500.0,0.00020345,2]
[349768595,1737418245562,-642.61,0.00020345,2]
[349768596,1737418245572,-802.3,0.00020345,2]
[349768597,1737418245581,-500.0,0.00020345,2]
[349768598,1737418245590,-605.56,0.00020345,2]
[349768599,1737418245603,-500.0,0.00020345,2]
[349768600,1737418245612,-664.27,0.00020345,2]
[349768601,1737418245622,-500.0,0.00020345,2]
[349768602,1737418245631,-500.0,0.00020345,2]
[349768603,1737418245641,-500.0,0.00020345,2]
[349768604,1737418245651,-730.71,0.00020345,2]
[349768605,1737418245660,-500.0,0.00020345,2]
[349768606,1737418245670,-500.0,0.00020345,2]
[349768607,1737418245679,-500.0,0.00020345,2]
[349768608,1737418245689,-500.0,0.00020345,2]
[349768609,1737418245698,-500.0,0.00020345,2]
[349768610,1737418245707,-500.0,0.00020345,2]
[349768611,1737418245717,-500.0,0.00020345,2]
[349768612,1737418245726,-512.71,0.00020346,2]
[349768613,1737418245737,-500.0,0.00020346,2]
[349768614,1737418245747,-500.0,0.00020346,2]
[349768616,1737418245757,-500.0,0.00020346,2]
[349768617,1737418245769,-500.0,0.00020346,2]
[349768618,1737418245779,-500.0,0.00020346,2]
[349768619,1737418245789,-500.0,0.00020346,2]
[349768620,1737418245799,-500.0,0.00020346,2]
[349768622,1737418245809,-500.0,0.00020346,2]
[349768623,1737418245819,-500.0,0.00020346,2]
[349768624,1737418245831,-500.0,0.00020346,2]
[349768625,1737418245842,-500.0,0.00020346,2]
[349768626,1737418245852,-500.0,0.00020346,2]
[349768628,1737418245862,-500.0,0.00020346,2]
[349768629,1737418245871,-500.0,0.00020346,2]
[349768630,1737418245881,-500.0,0.00020346,2]
[349768631,1737418245891,-500.0,0.00020346,2]
[349768632,1737418245901,-316.75642586,0.00020346,2]
[349768633,1737418245911,-703.05,0.00020346,2]
[349768634,1737418245920,-500.0,0.00020346,2]
[349768635,1737418245931,-500.0,0.00020346,2]
[349768636,1737418245940,-621.07,0.00020346,2]
[349768637,1737418245950,-1146.45,0.00020346,2]
[349768639,1737418245960,-500.0,0.00020346,2]
[349768640,1737418245970,-251.293089,0.00020346,2]
[349768641,1737418245980,-481.47945333,0.00020346,2]
[349768642,1737418245990,-500.0,0.00020346,2]
[349768643,1737418246000,-817.86,0.00020346,2]
[349768644,1737418246010,-500.0,0.00020346,2]
[349768645,1737418246019,-500.0,0.00020346,2]
[349768646,1737418246028,-1131.27,0.00020346,2]
[349768647,1737418246038,-156.45728,0.00020346,2]
[349768648,1737418246048,-500.0,0.00020346,2]
[349768649,1737418246057,-500.0,0.00020346,2]
[349768650,1737418246067,-801.7,0.00020346,2]
[349768651,1737418246080,-500.0,0.00020346,2]
[349768652,1737418246091,-500.0,0.00020346,2]
[349768653,1737418246101,-1535.42,0.00020346,2]
[349768654,1737418246111,-830.37,0.00020346,2]
[349768655,1737418246121,-829.35,0.00020346,2]
[349768656,1737418246131,-514.18,0.00020346,2]
[349768657,1737418246141,-1187.21,0.00020346,2]
[349768658,1737418246151,-500.0,0.00020346,2]
[349768659,1737418246161,-570.16,0.00020346,2]
[349768660,1737418246172,-703.91,0.00020346,2]
[349768661,1737418246181,-1413.53,0.00020346,2]
[349768662,1737418246191,-550.62,0.00020346,2]
[349768663,1737418246201,-894.6,0.00020346,2]
[349768664,1737418246212,-500.0,0.00020347,2]
[349768665,1737418246223,-258.06980835,0.00020383,2]
[349768666,1737418246233,-53579.83411439,0.00020469,2]
[349768667,1737418246243,-207.47915184,0.0002052,2]
[349768668,1737418246252,-530.13,0.0002052,2]
[349768669,1737418246262,-517.52,0.0002052,2]
[349768670,1737418246271,-500.0,0.0002052,2]
[349768671,1737418246281,-657.88,0.0002052,2]
[349768672,1737418246291,-1011.35,0.0002052,2]
[349768673,1737418246300,-726.57,0.0002052,2]
[349768674,1737418246310,-1153.79,0.0002052,2]
[349768675,1737418246320,-573.65,0.0002052,2]
[349768676,1737418246335,-910.43,0.0002052,2]
[349768677,1737418246344,-794.24,0.0002052,2]
[349768678,1737418246354,-500.0,0.0002052,2]
[349768679,1737418246364,-500.0,0.0002052,2]
[349768680,1737418246374,-1131.13,0.0002052,2]
[349768681,1737418246384,-500.0,0.0002052,2]
[349768682,1737418246395,-1391.68,0.0002052,2]
[349768683,1737418246405,-500.0,0.0002052,2]
[349768684,1737418246417,-500.0,0.0002052,2]
[349768685,1737418246428,-1472.73,0.0002052,2]
[349768686,1737418246438,-583.24,0.0002052,2]
[349768687,1737418246448,-500.0,0.0002052,2]
[349768688,1737418246458,-500.0,0.0002052,2]
[349768689,1737418246467,-1093.55,0.0002052,2]
[349768690,1737418246477,-500.0,0.00020546,2]
[349768691,1737418246487,-500.0,0.00020546,2]
[349768693,1737418246497,-500.0,0.00020546,2]
[349768695,1737418246507,-500.0,0.00020546,2]
[349768697,1737418246517,-500.0,0.00020546,2]
[349768699,1737418246530,-696.22,0.00020546,2]
[349768701,1737418246539,-583.13,0.00020546,2]
[349768703,1737418246548,-500.0,0.00020546,2]
[349768704,1737418246559,-500.0,0.00020546,2]
[349768705,1737418246569,-1186.32,0.00020546,2]
[349768706,1737418246582,-2319.64,0.00020546,2]
[349768707,1737418246592,-500.0,0.00020546,2]
[349768708,1737418246602,-500.0,0.00020546,2]
[349768709,1737418246612,-500.0,0.00020546,2]
[349768710,1737418246621,-500.0,0.00020546,2]
[349768711,1737418246631,-500.0,0.00020546,2]
[349768712,1737418246640,-1126.99,0.00020546,2]
[349768713,1737418246650,-1444.67,0.00020546,2]
[349768714,1737418246660,-500.0,0.00020546,2]
[349768715,1737418246670,-531.88,0.00020546,2]
[349768716,1737418246680,-617.28,0.00020546,2]
[349768717,1737418246691,-600.33,0.00020546,2]
[349768718,1737418246702,-1768.27,0.00020546,2]
[349768719,1737418246712,-500.0,0.00020546,2]
[349768720,1737418246722,-883.44,0.00020546,2]
[349768721,1737418246732,-764.18,0.00020546,2]
[349768722,1737418246742,-914.35,0.00020546,2]
[349768723,1737418246751,-20000.3281,0.00020582,2]
[349768724,1737418246761,-868.04670755,0.00020592,2]
[349768725,1737418246771,-500.0,0.00020619,2]
[349768726,1737418246780,-500.0,0.00020619,2]
[349768727,1737418246791,-695.21,0.00020619,2]
[349768728,1737418246800,-205.26655479,0.00020619,2]
[349768729,1737418246810,-500.0,0.00020619,2]